[Event "Titled Tuesday Blitz May 23 Late 2023"]
[White "Matute Escobar, Roxanny"]
[Black "Mazurkiewicz, Michal"]
[WhiteFideId "3926028"]
[BlackFideId "1124943"]
[WhiteElo "1844"]
[BlackElo "2054"]
[Result "1/2-1/2"]
[Round "04"]
[TimeControl "180+2"]
[Date "2023.05.23"]
[WhiteClock "0:00:10"]
[BlackClock "0:00:09"]

1. e4 {[%clk 0:02:59]}  d6 {[%clk 0:02:59]} 2. d4 {[%clk 0:02:58]}  Nf6 {[%clk 0:02:59]} 3. Nc3 {[%clk 0:02:58]}  c6 {[%clk 0:02:58]} 4. f3 {[%clk 0:02:57]}  e5 {[%clk 0:02:58]} 5. Be3 {[%clk 0:02:57]}  Be7 {[%clk 0:02:59]} 6. Qd2 {[%clk 0:02:57]}  O-O {[%clk 0:02:59]} 7. O-O-O {[%clk 0:02:57]}  b5 {[%clk 0:03:00]} 8. Kb1 {[%clk 0:02:56]}  Qc7 {[%clk 0:03:00]} 9. g4 {[%clk 0:02:54]}  a5 {[%clk 0:02:58]} 10. g5 {[%clk 0:02:53]}  Nfd7 {[%clk 0:02:57]} 11. h4 {[%clk 0:02:50]}  Nb6 {[%clk 0:02:57]} 12. dxe5 {[%clk 0:02:40]}  dxe5 {[%clk 0:02:57]} 13. Qf2 {[%clk 0:02:39]}  N8d7 {[%clk 0:02:55]} 14. h5 {[%clk 0:02:36]}  b4 {[%clk 0:02:54]} 15. Nce2 {[%clk 0:02:36]}  Nc4 {[%clk 0:02:54]} 16. Bc1 {[%clk 0:02:37]}  Bc5 {[%clk 0:02:43]} 17. Qg3 {[%clk 0:02:29]}  Ne3 {[%clk 0:02:37]} 18. Bxe3 {[%clk 0:01:54]}  Bxe3 {[%clk 0:02:38]} 19. g6 {[%clk 0:01:55]}  Nf6 {[%clk 0:02:32]} 20. h6 {[%clk 0:01:51]}  fxg6 {[%clk 0:02:31]} 21. hxg7 {[%clk 0:01:51]}  Rf7 {[%clk 0:02:31]} 22. f4 {[%clk 0:01:42]}  exf4 {[%clk 0:02:27]} 23. Qg5 {[%clk 0:01:40]}  Be6 {[%clk 0:02:17]} 24. Qh4 {[%clk 0:01:28]}  h5 {[%clk 0:02:03]} 25. Nf3 {[%clk 0:01:25]}  Nxe4 {[%clk 0:02:00]} 26. Ned4 {[%clk 0:01:20]}  Bd5 {[%clk 0:01:50]} 27. Bg2 {[%clk 0:01:09]}  Nf2 {[%clk 0:01:31]} 28. Qg5 {[%clk 0:01:00]}  Rxg7 {[%clk 0:01:13]} 29. Bh3 {[%clk 0:00:42]}  Nxh1 {[%clk 0:01:06]} 30. Be6+ {[%clk 0:00:40]}  Kh7 {[%clk 0:00:44]} 31. Bxd5 {[%clk 0:00:32]}  cxd5 {[%clk 0:00:45]} 32. Rxh1 {[%clk 0:00:27]}  Qd6 {[%clk 0:00:29]} 33. Ne5 {[%clk 0:00:19]}  Bxd4 {[%clk 0:00:23]} 34. Nxg6 {[%clk 0:00:13]}  Qxg6 {[%clk 0:00:15]} 35. Rxh5+ {[%clk 0:00:14]}  Kg8 {[%clk 0:00:16]} 36. Qxd5+ {[%clk 0:00:13]}  Rf7 {[%clk 0:00:12]} 37. Qxa8+ {[%clk 0:00:13]}  Rf8 {[%clk 0:00:13]} 38. Qd5+ {[%clk 0:00:13]}  Rf7 {[%clk 0:00:08]} 39. Rg5 {[%clk 0:00:14]}  Qxg5 {[%clk 0:00:04]} 40. Qxg5+ {[%clk 0:00:14]}  Bg7 {[%clk 0:00:05]} 41. Qxa5 {[%clk 0:00:13]}  f3 {[%clk 0:00:05]} 42. Qb5 {[%clk 0:00:12]}  f2 {[%clk 0:00:05]} 43. Qf1 {[%clk 0:00:13]}  Bd4 {[%clk 0:00:05]} 44. a3 {[%clk 0:00:10]}  Rg7 {[%clk 0:00:05]} 45. Ka2 {[%clk 0:00:09]}  Rg1 {[%clk 0:00:05]} 46. Qc4+ {[%clk 0:00:10]}  Kh7 {[%clk 0:00:05]} 47. Qd3+ {[%clk 0:00:10]}  Kh6 {[%clk 0:00:05]} 48. Qd2+ {[%clk 0:00:10]}  Kh5 {[%clk 0:00:05]} 49. Qe2+ {[%clk 0:00:10]}  Kh4 {[%clk 0:00:05]} 50. Qe4+ {[%clk 0:00:11]}  Kh3 {[%clk 0:00:05]} 51. Qf3+ {[%clk 0:00:11]}  Kh2 {[%clk 0:00:03]} 52. Qh5+ {[%clk 0:00:11]}  Kg2 {[%clk 0:00:03]} 53. Qg4+ {[%clk 0:00:11]}  Kf1 {[%clk 0:00:03]} 54. Qxd4 {[%clk 0:00:12]}  Ke2 {[%clk 0:00:04]} 55. Qc4+ {[%clk 0:00:12]}  Kd2 {[%clk 0:00:04]} 56. Qd3+ {[%clk 0:00:11]}  Ke1 {[%clk 0:00:04]} 57. Qe3+ {[%clk 0:00:11]}  Kf1 {[%clk 0:00:05]} 58. axb4 {[%clk 0:00:11]}  Kg2 {[%clk 0:00:05]} 59. Qg5+ {[%clk 0:00:10]}  Kf3 {[%clk 0:00:05]} 60. Qf5+ {[%clk 0:00:11]}  Kg2 {[%clk 0:00:05]} 61. Qe4+ {[%clk 0:00:11]}  Kg3 {[%clk 0:00:05]} 62. Qg6+ {[%clk 0:00:11]}  Kf3 {[%clk 0:00:05]} 63. Qh5+ {[%clk 0:00:10]}  Ke3 {[%clk 0:00:05]} 64. Qc5+ {[%clk 0:00:11]}  Kf3 {[%clk 0:00:05]} 65. Qc3+ {[%clk 0:00:10]}  Ke2 {[%clk 0:00:05]} 66. Qc4+ {[%clk 0:00:10]}  Ke3 {[%clk 0:00:06]} 67. Qd3+ {[%clk 0:00:11]}  Kf4 {[%clk 0:00:06]} 68. Qd2+ {[%clk 0:00:10]}  Kf3 {[%clk 0:00:07]} 69. Qd3+ {[%clk 0:00:10]}  Kg2 {[%clk 0:00:07]} 70. Qe4+ {[%clk 0:00:10]}  Kg3 {[%clk 0:00:08]} 71. Qg6+ {[%clk 0:00:11]}  Kf3 {[%clk 0:00:08]} 72. Qd3+ {[%clk 0:00:11]}  Kg2 {[%clk 0:00:08]} 73. Qg6+ {[%clk 0:00:10]}  Kf3 {[%clk 0:00:09]} 1/2-1/2


[Site "https://www.chess.com"]

[Event "Titled Tuesday Blitz May 23 Late 2023"]
[White "Levitan, Ronit"]
[Black "Kirillov, Dmitry"]
[WhiteFideId "2815109"]
[BlackFideId "34180572"]
[WhiteElo "1930"]
[BlackElo "2161"]
[Result "0-1"]
[Round "04"]
[TimeControl "180+2"]
[Date "2023.05.23"]
[WhiteClock "0:01:07"]
[BlackClock "0:01:30"]

1. d4 {[%clk 0:02:50]}  d5 {[%clk 0:02:58]} 2. Nf3 {[%clk 0:02:48]}  e6 {[%clk 0:02:58]} 3. Bf4 {[%clk 0:02:45]}  Bd6 {[%clk 0:02:57]} 4. e3 {[%clk 0:02:44]}  Nf6 {[%clk 0:02:57]} 5. Bd3 {[%clk 0:02:39]}  O-O {[%clk 0:02:57]} 6. Nbd2 {[%clk 0:02:39]}  c5 {[%clk 0:02:56]} 7. c3 {[%clk 0:02:38]}  b6 {[%clk 0:02:56]} 8. O-O {[%clk 0:02:33]}  Bb7 {[%clk 0:02:56]} 9. Bxd6 {[%clk 0:02:32]}  Qxd6 {[%clk 0:02:56]} 10. Re1 {[%clk 0:02:33]}  Ne4 {[%clk 0:02:56]} 11. Bxe4 {[%clk 0:02:28]}  dxe4 {[%clk 0:02:57]} 12. Ne5 {[%clk 0:02:28]}  Nd7 {[%clk 0:02:27]} 13. Nxd7 {[%clk 0:02:24]}  Qxd7 {[%clk 0:02:28]} 14. dxc5 {[%clk 0:02:24]}  bxc5 {[%clk 0:02:28]} 15. Nb3 {[%clk 0:02:23]}  Qc7 {[%clk 0:02:25]} 16. Qh5 {[%clk 0:02:20]}  f5 {[%clk 0:02:15]} 17. Rad1 {[%clk 0:02:18]}  Rad8 {[%clk 0:02:14]} 18. Qe2 {[%clk 0:02:14]}  Qb6 {[%clk 0:02:11]} 19. Qc4 {[%clk 0:02:11]}  Rc8 {[%clk 0:01:53]} 20. Rd7 {[%clk 0:02:07]}  Bd5 {[%clk 0:01:40]} 21. Qa4 {[%clk 0:01:53]}  Rc7 {[%clk 0:01:40]} 22. h3 {[%clk 0:01:45]}  Bc6 {[%clk 0:01:37]} 23. Rxc7 {[%clk 0:01:16]}  Bxa4 {[%clk 0:01:36]} 24. Re7 {[%clk 0:01:17]}  Re8 {[%clk 0:01:31]} 25. Rxe8+ {[%clk 0:01:15]}  Bxe8 {[%clk 0:01:32]} 26. Rd1 {[%clk 0:01:07]}  Ba4 {[%clk 0:01:30]} 0-1


[Site "https://www.chess.com"]

[Event "Titled Tuesday Blitz May 23 Late 2023"]
[White "a-z30"]
[Black "Ottosen, David"]
[BlackFideId "2603080"]
[WhiteElo "2402"]
[BlackElo "2031"]
[Result "1-0"]
[Round "04"]
[TimeControl "180+2"]
[Date "2023.05.23"]
[WhiteClock "0:00:54"]
[BlackClock "0:00:18"]

1. d3 {[%clk 0:03:00]}  d5 {[%clk 0:02:57]} 2. Nf3 {[%clk 0:03:01]}  c5 {[%clk 0:02:55]} 3. g3 {[%clk 0:03:01]}  Nc6 {[%clk 0:02:55]} 4. Bg2 {[%clk 0:03:01]}  e5 {[%clk 0:02:55]} 5. O-O {[%clk 0:03:02]}  Nf6 {[%clk 0:02:55]} 6. c4 {[%clk 0:03:02]}  d4 {[%clk 0:02:55]} 7. e3 {[%clk 0:03:02]}  Be6 {[%clk 0:02:53]} 8. exd4 {[%clk 0:03:02]}  exd4 {[%clk 0:02:52]} 9. Ng5 {[%clk 0:02:59]}  Bd7 {[%clk 0:02:50]} 10. Re1+ {[%clk 0:02:47]}  Be7 {[%clk 0:02:50]} 11. Qe2 {[%clk 0:02:47]}  h6 {[%clk 0:02:43]} 12. Ne4 {[%clk 0:02:18]}  O-O {[%clk 0:02:41]} 13. Nxf6+ {[%clk 0:02:04]}  Bxf6 {[%clk 0:02:41]} 14. Nd2 {[%clk 0:01:59]}  g6 {[%clk 0:02:39]} 15. Ne4 {[%clk 0:01:59]}  Be7 {[%clk 0:02:35]} 16. Bxh6 {[%clk 0:01:58]}  Re8 {[%clk 0:02:35]} 17. Qd2 {[%clk 0:01:50]}  Bf5 {[%clk 0:02:21]} 18. h4 {[%clk 0:01:48]}  Bxe4 {[%clk 0:02:03]} 19. Rxe4 {[%clk 0:01:47]}  Bf6 {[%clk 0:02:03]} 20. Rae1 {[%clk 0:01:45]}  Rxe4 {[%clk 0:02:02]} 21. Rxe4 {[%clk 0:01:46]}  Kh7 {[%clk 0:01:59]} 22. Bf4 {[%clk 0:01:41]}  Qd7 {[%clk 0:01:53]} 23. Qe2 {[%clk 0:01:41]}  a6 {[%clk 0:01:34]} 24. a3 {[%clk 0:01:40]}  Rc8 {[%clk 0:01:30]} 25. Bf3 {[%clk 0:01:40]}  b5 {[%clk 0:01:30]} 26. b3 {[%clk 0:01:36]}  bxc4 {[%clk 0:01:29]} 27. bxc4 {[%clk 0:01:35]}  Ne7 {[%clk 0:01:21]} 28. Kg2 {[%clk 0:01:32]}  Nf5 {[%clk 0:01:19]} 29. Bg4 {[%clk 0:01:31]}  Bg7 {[%clk 0:01:08]} 30. h5 {[%clk 0:01:30]}  Qa4 {[%clk 0:01:00]} 31. hxg6+ {[%clk 0:01:25]}  Kxg6 {[%clk 0:00:58]} 32. Bh5+ {[%clk 0:01:10]}  Kh7 {[%clk 0:00:57]} 33. Qg4 {[%clk 0:01:08]}  Qd7 {[%clk 0:00:51]} 34. Be5 {[%clk 0:01:04]}  Rg8 {[%clk 0:00:49]} 35. Qh3 {[%clk 0:00:59]}  Bh6 {[%clk 0:00:31]} 36. Bg4 {[%clk 0:00:54]}  Rxg4 {[%clk 0:00:18]} 37. Qxg4 {[%clk 0:00:54]} 1-0


[Site "https://www.chess.com"]

[Event "Titled Tuesday Blitz May 23 Late 2023"]
[White "Prado, Alexandra"]
[Black "Qiao, Cindy"]
[WhiteFideId "3301346"]
[BlackFideId "2620243"]
[WhiteElo "1759"]
[BlackElo "1777"]
[Result "0-1"]
[Round "04"]
[TimeControl "180+2"]
[Date "2023.05.23"]
[WhiteClock "0:00:17"]
[BlackClock "0:01:55"]

1. e4 {[%clk 0:02:58]}  e5 {[%clk 0:02:59]} 2. Nf3 {[%clk 0:02:58]}  Nc6 {[%clk 0:02:59]} 3. Bc4 {[%clk 0:02:58]}  Bc5 {[%clk 0:02:58]} 4. O-O {[%clk 0:02:56]}  Nf6 {[%clk 0:02:57]} 5. d4 {[%clk 0:02:55]}  Bxd4 {[%clk 0:02:48]} 6. Nxd4 {[%clk 0:02:53]}  Nxd4 {[%clk 0:02:49]} 7. Bg5 {[%clk 0:02:53]}  h6 {[%clk 0:02:48]} 8. Bh4 {[%clk 0:02:53]}  O-O {[%clk 0:02:47]} 9. f4 {[%clk 0:02:49]}  d6 {[%clk 0:02:45]} 10. fxe5 {[%clk 0:02:43]}  dxe5 {[%clk 0:02:46]} 11. Bxf6 {[%clk 0:02:43]}  gxf6 {[%clk 0:02:45]} 12. Qh5 {[%clk 0:02:40]}  Kg7 {[%clk 0:02:36]} 13. c3 {[%clk 0:02:21]}  Ne6 {[%clk 0:02:32]} 14. Na3 {[%clk 0:01:20]}  Nf4 {[%clk 0:02:26]} 15. Qh4 {[%clk 0:01:11]}  Be6 {[%clk 0:02:20]} 16. Rad1 {[%clk 0:01:00]}  Qe7 {[%clk 0:02:18]} 17. Qg3+ {[%clk 0:00:52]}  Kh7 {[%clk 0:02:14]} 18. Qf3 {[%clk 0:00:41]}  Rg8 {[%clk 0:02:10]} 19. g3 {[%clk 0:00:36]}  Bg4 {[%clk 0:01:56]} 20. Qf2 {[%clk 0:00:20]}  Nh3+ {[%clk 0:01:54]} 21. Kg2 {[%clk 0:00:18]}  Nxf2 {[%clk 0:01:55]} 22. Rxf2 {[%clk 0:00:17]}  Bxd1 {[%clk 0:01:55]} 0-1


[Site "https://www.chess.com"]

[Event "Titled Tuesday Blitz May 23 Late 2023"]
[White "Santos Flores, Alberto"]
[Black "Hernandez Leon, Alberto"]
[WhiteFideId "3601234"]
[BlackFideId "2272555"]
[WhiteElo "2235"]
[BlackElo "2239"]
[Result "0-1"]
[Round "04"]
[TimeControl "180+2"]
[Date "2023.05.23"]
[WhiteClock "0:00:11"]
[BlackClock "0:00:10"]

1. e4 {[%clk 0:02:45]}  e5 {[%clk 0:03:00]} 2. Nf3 {[%clk 0:02:45]}  Nc6 {[%clk 0:03:00]} 3. Bc4 {[%clk 0:02:44]}  Nf6 {[%clk 0:03:00]} 4. d3 {[%clk 0:02:44]}  Bc5 {[%clk 0:03:00]} 5. c3 {[%clk 0:02:44]}  d6 {[%clk 0:03:00]} 6. O-O {[%clk 0:02:42]}  a6 {[%clk 0:02:59]} 7. Bb3 {[%clk 0:02:40]}  Ba7 {[%clk 0:02:59]} 8. Nbd2 {[%clk 0:02:40]}  O-O {[%clk 0:02:55]} 9. h3 {[%clk 0:02:38]}  h6 {[%clk 0:02:54]} 10. Re1 {[%clk 0:02:38]}  Be6 {[%clk 0:02:52]} 11. Bc2 {[%clk 0:02:37]}  Re8 {[%clk 0:02:49]} 12. Nf1 {[%clk 0:02:37]}  Qd7 {[%clk 0:02:49]} 13. Ng3 {[%clk 0:02:37]}  Rad8 {[%clk 0:02:39]} 14. Nh4 {[%clk 0:02:36]}  Bxh3 {[%clk 0:02:39]} 15. gxh3 {[%clk 0:02:36]}  Qxh3 {[%clk 0:02:39]} 16. Nhf5 {[%clk 0:02:00]}  Ng4 {[%clk 0:02:37]} 17. Re2 {[%clk 0:01:12]}  Qh2+ {[%clk 0:02:12]} 18. Kf1 {[%clk 0:01:12]}  Bxf2 {[%clk 0:02:04]} 19. Rd2 {[%clk 0:00:48]}  Qh3+ {[%clk 0:01:38]} 20. Ke2 {[%clk 0:00:47]}  Bxg3 {[%clk 0:01:25]} 21. Nxg3 {[%clk 0:00:45]}  Qxg3 {[%clk 0:01:26]} 22. Qe1 {[%clk 0:00:45]}  Qf4 {[%clk 0:01:05]} 23. Rd1 {[%clk 0:00:39]}  Qh2+ {[%clk 0:00:59]} 24. Kf3 {[%clk 0:00:29]}  Re6 {[%clk 0:00:41]} 25. Kxg4 {[%clk 0:00:29]}  Rg6+ {[%clk 0:00:36]} 26. Kf3 {[%clk 0:00:28]}  Qh3+ {[%clk 0:00:30]} 27. Ke2 {[%clk 0:00:23]}  Rg2+ {[%clk 0:00:30]} 28. Qf2 {[%clk 0:00:19]}  Rxf2+ {[%clk 0:00:28]} 29. Kxf2 {[%clk 0:00:19]}  Qh2+ {[%clk 0:00:28]} 30. Ke1 {[%clk 0:00:19]}  Qxc2 {[%clk 0:00:28]} 31. Be3 {[%clk 0:00:19]}  Qxb2 {[%clk 0:00:27]} 32. Rac1 {[%clk 0:00:19]}  Qxa2 {[%clk 0:00:26]} 33. Rd2 {[%clk 0:00:19]}  Qe6 {[%clk 0:00:26]} 34. Rg2 {[%clk 0:00:19]}  d5 {[%clk 0:00:25]} 35. exd5 {[%clk 0:00:17]}  Qxd5 {[%clk 0:00:24]} 36. Rd2 {[%clk 0:00:16]}  f5 {[%clk 0:00:22]} 37. Kd1 {[%clk 0:00:16]}  f4 {[%clk 0:00:22]} 38. Bf2 {[%clk 0:00:16]}  Na5 {[%clk 0:00:22]} 39. Re2 {[%clk 0:00:15]}  Qxd3+ {[%clk 0:00:21]} 40. Ke1 {[%clk 0:00:15]}  e4 {[%clk 0:00:20]} 41. Bd4 {[%clk 0:00:15]}  f3 {[%clk 0:00:16]} 42. Re3 {[%clk 0:00:15]}  Qc4 {[%clk 0:00:15]} 43. Rxe4 {[%clk 0:00:15]}  Nb3 {[%clk 0:00:13]} 44. Rd1 {[%clk 0:00:15]}  Nxd4 {[%clk 0:00:14]} 45. cxd4 {[%clk 0:00:15]}  Qc3+ {[%clk 0:00:11]} 46. Kf2 {[%clk 0:00:15]}  Qc2+ {[%clk 0:00:11]} 47. Ke1 {[%clk 0:00:11]}  Qxe4+ {[%clk 0:00:10]} 0-1


[Site "https://www.chess.com"]

[Event "Titled Tuesday Blitz May 23 Late 2023"]
[White "olga-belka"]
[Black "Dzierzak, Radoslaw"]
[BlackFideId "1161407"]
[WhiteElo "2252"]
[BlackElo "2166"]
[Result "1-0"]
[Round "04"]
[TimeControl "180+2"]
[Date "2023.05.23"]
[WhiteClock "0:00:17"]
[BlackClock "0:00:00"]

1. e4 {[%clk 0:02:59]}  c6 {[%clk 0:02:59]} 2. d4 {[%clk 0:02:58]}  d5 {[%clk 0:02:59]} 3. exd5 {[%clk 0:02:59]}  cxd5 {[%clk 0:03:00]} 4. Bd3 {[%clk 0:02:58]}  Nc6 {[%clk 0:03:00]} 5. c3 {[%clk 0:02:58]}  Nf6 {[%clk 0:03:00]} 6. h3 {[%clk 0:02:58]}  g6 {[%clk 0:02:59]} 7. Nf3 {[%clk 0:02:57]}  Bg7 {[%clk 0:03:00]} 8. O-O {[%clk 0:02:57]}  O-O {[%clk 0:03:00]} 9. Bf4 {[%clk 0:02:53]}  Bf5 {[%clk 0:02:59]} 10. Be2 {[%clk 0:02:53]}  Qb6 {[%clk 0:02:47]} 11. Qb3 {[%clk 0:02:52]}  Qxb3 {[%clk 0:02:35]} 12. axb3 {[%clk 0:02:52]}  a5 {[%clk 0:02:34]} 13. Nbd2 {[%clk 0:02:48]}  Bc2 {[%clk 0:02:32]} 14. Rfc1 {[%clk 0:02:47]}  Bf5 {[%clk 0:02:30]} 15. g4 {[%clk 0:02:47]}  Bd7 {[%clk 0:02:25]} 16. Ne5 {[%clk 0:02:42]}  Nxe5 {[%clk 0:02:24]} 17. Bxe5 {[%clk 0:02:38]}  Rfc8 {[%clk 0:02:18]} 18. c4 {[%clk 0:02:18]}  a4 {[%clk 0:02:09]} 19. bxa4 {[%clk 0:02:13]}  dxc4 {[%clk 0:01:58]} 20. a5 {[%clk 0:02:05]}  Nd5 {[%clk 0:01:41]} 21. Bxg7 {[%clk 0:01:59]}  Kxg7 {[%clk 0:01:42]} 22. Nxc4 {[%clk 0:01:57]}  Nf4 {[%clk 0:01:42]} 23. Bf1 {[%clk 0:01:57]}  Be6 {[%clk 0:01:36]} 24. b4 {[%clk 0:01:45]}  Rd8 {[%clk 0:00:58]} 25. Nb6 {[%clk 0:01:39]}  Rab8 {[%clk 0:00:57]} 26. Rc7 {[%clk 0:01:30]}  Rxd4 {[%clk 0:00:52]} 27. b5 {[%clk 0:01:30]}  Kf6 {[%clk 0:00:30]} 28. Na4 {[%clk 0:01:12]}  Bd5 {[%clk 0:00:12]} 29. Nc5 {[%clk 0:01:04]}  b6 {[%clk 0:00:12]} 30. Nd7+ {[%clk 0:00:59]}  Kg5 {[%clk 0:00:12]} 31. Nxb8 {[%clk 0:00:58]}  bxa5 {[%clk 0:00:12]} 32. Nc6 {[%clk 0:00:49]}  Rd2 {[%clk 0:00:08]} 33. Nxe7 {[%clk 0:00:45]}  Bf3 {[%clk 0:00:07]} 34. b6 {[%clk 0:00:41]}  Kh4 {[%clk 0:00:03]} 35. b7 {[%clk 0:00:37]}  Nxh3+ {[%clk 0:00:03]} 36. Bxh3 {[%clk 0:00:37]}  Kxh3 {[%clk 0:00:03]} 37. b8=Q {[%clk 0:00:34]}  Rd4 {[%clk 0:00:03]} 38. Qb3 {[%clk 0:00:24]}  Rxg4+ {[%clk 0:00:02]} 39. Kf1 {[%clk 0:00:24]}  Kh2 {[%clk 0:00:01]} 40. Qxf3 {[%clk 0:00:23]}  Rg1+ {[%clk 0:00:02]} 41. Ke2 {[%clk 0:00:23]}  Rxa1 {[%clk 0:00:03]} 42. Rc3 {[%clk 0:00:19]}  Ra2+ {[%clk 0:00:04]} 43. Kd1 {[%clk 0:00:18]}  Ra1+ {[%clk 0:00:04]} 44. Kc2 {[%clk 0:00:17]}  Ra2+ {[%clk 0:00:00]} 45. Kb1 {[%clk 0:00:17]} 1-0


[Site "https://www.chess.com"]

[Event "Titled Tuesday Blitz May 23 Late 2023"]
[White "KorolDimitriy75"]
[Black "Almedina Ortiz, Edgardo J."]
[BlackFideId "3100197"]
[WhiteElo "2384"]
[BlackElo "2217"]
[Result "1/2-1/2"]
[Round "04"]
[TimeControl "180+2"]
[Date "2023.05.23"]
[WhiteClock "0:00:16"]
[BlackClock "0:00:24"]

1. d4 {[%clk 0:03:00]}  d5 {[%clk 0:02:58]} 2. c4 {[%clk 0:03:01]}  e6 {[%clk 0:02:58]} 3. Nc3 {[%clk 0:03:01]}  Nf6 {[%clk 0:02:58]} 4. Bg5 {[%clk 0:03:01]}  c6 {[%clk 0:02:54]} 5. cxd5 {[%clk 0:03:00]}  exd5 {[%clk 0:02:54]} 6. e3 {[%clk 0:03:00]}  Be7 {[%clk 0:02:53]} 7. Bd3 {[%clk 0:03:01]}  Nbd7 {[%clk 0:02:52]} 8. Qc2 {[%clk 0:03:02]}  Nh5 {[%clk 0:02:51]} 9. Bxe7 {[%clk 0:03:00]}  Qxe7 {[%clk 0:02:52]} 10. Nge2 {[%clk 0:03:00]}  g6 {[%clk 0:02:49]} 11. h3 {[%clk 0:03:00]}  Nb6 {[%clk 0:02:47]} 12. O-O-O {[%clk 0:03:00]}  Be6 {[%clk 0:02:45]} 13. Kb1 {[%clk 0:03:01]}  O-O-O {[%clk 0:02:45]} 14. Rc1 {[%clk 0:03:01]}  Kb8 {[%clk 0:02:44]} 15. g4 {[%clk 0:03:01]}  Nf6 {[%clk 0:02:41]} 16. Ng3 {[%clk 0:02:52]}  Ne8 {[%clk 0:02:33]} 17. Na4 {[%clk 0:02:43]}  Nxa4 {[%clk 0:02:32]} 18. Qxa4 {[%clk 0:02:44]}  Nd6 {[%clk 0:02:30]} 19. Rc3 {[%clk 0:02:38]}  Rhf8 {[%clk 0:02:01]} 20. Rhc1 {[%clk 0:02:15]}  Ka8 {[%clk 0:01:44]} 21. Ra3 {[%clk 0:02:08]}  Nc8 {[%clk 0:01:43]} 22. Rc5 {[%clk 0:01:52]}  Qd6 {[%clk 0:01:27]} 23. Ra5 {[%clk 0:01:48]}  Qb8 {[%clk 0:01:26]} 24. Ne2 {[%clk 0:01:22]}  f5 {[%clk 0:01:17]} 25. g5 {[%clk 0:01:21]}  f4 {[%clk 0:01:01]} 26. Nxf4 {[%clk 0:01:21]}  Rxf4 {[%clk 0:01:01]} 27. exf4 {[%clk 0:01:20]}  Bxh3 {[%clk 0:01:01]} 28. Bxg6 {[%clk 0:00:52]}  hxg6 {[%clk 0:01:00]} 29. Rxh3 {[%clk 0:00:51]}  Qxf4 {[%clk 0:01:01]} 30. Rc3 {[%clk 0:00:28]}  Qxf2 {[%clk 0:00:40]} 31. Rxc6 {[%clk 0:00:14]}  bxc6 {[%clk 0:00:21]} 32. Qxc6+ {[%clk 0:00:14]}  Kb8 {[%clk 0:00:21]} 33. Rb5+ {[%clk 0:00:14]}  Nb6 {[%clk 0:00:21]} 34. Rxb6+ {[%clk 0:00:14]}  axb6 {[%clk 0:00:22]} 35. Qxb6+ {[%clk 0:00:15]}  Kc8 {[%clk 0:00:23]} 36. Qc6+ {[%clk 0:00:15]}  Kb8 {[%clk 0:00:23]} 37. Qb6+ {[%clk 0:00:15]}  Kc8 {[%clk 0:00:23]} 38. Qc6+ {[%clk 0:00:16]}  Kb8 {[%clk 0:00:24]} 39. Qb6+ {[%clk 0:00:16]} 1/2-1/2


[Site "https://www.chess.com"]

[Event "Titled Tuesday Blitz May 23 Late 2023"]
[White "Quirke, Jeffrey"]
[Black "Kaganskiy, Gleb"]
[WhiteFideId "2013029"]
[BlackFideId "4132025"]
[WhiteElo "2213"]
[BlackElo "2165"]
[Result "0-1"]
[Round "04"]
[TimeControl "180+2"]
[Date "2023.05.23"]
[WhiteClock "0:00:27"]
[BlackClock "0:00:50"]

1. e4 {[%clk 0:03:00]}  c5 {[%clk 0:02:52]} 2. Nc3 {[%clk 0:03:00]}  Nc6 {[%clk 0:02:51]} 3. f4 {[%clk 0:02:59]}  g6 {[%clk 0:02:50]} 4. Nf3 {[%clk 0:02:58]}  Bg7 {[%clk 0:02:51]} 5. a4 {[%clk 0:02:59]}  e6 {[%clk 0:02:46]} 6. e5 {[%clk 0:02:59]}  Nge7 {[%clk 0:02:43]} 7. Bb5 {[%clk 0:02:56]}  O-O {[%clk 0:02:43]} 8. Ne4 {[%clk 0:02:54]}  b6 {[%clk 0:02:40]} 9. d4 {[%clk 0:02:28]}  cxd4 {[%clk 0:02:35]} 10. Nxd4 {[%clk 0:02:24]}  Bb7 {[%clk 0:02:34]} 11. Nxc6 {[%clk 0:01:59]}  dxc6 {[%clk 0:02:24]} 12. Bd3 {[%clk 0:01:40]}  c5 {[%clk 0:02:19]} 13. O-O {[%clk 0:01:39]}  c4 {[%clk 0:01:54]} 14. Nd6 {[%clk 0:01:38]}  cxd3 {[%clk 0:01:49]} 15. Nxb7 {[%clk 0:01:38]}  Qc7 {[%clk 0:01:38]} 16. Nd6 {[%clk 0:01:33]}  dxc2 {[%clk 0:01:37]} 17. Qd3 {[%clk 0:01:23]}  Nf5 {[%clk 0:01:35]} 18. Nxf5 {[%clk 0:01:06]}  exf5 {[%clk 0:01:33]} 19. Rf2 {[%clk 0:01:03]}  Rac8 {[%clk 0:01:29]} 20. Be3 {[%clk 0:00:40]}  Rfd8 {[%clk 0:01:08]} 21. Qc3 {[%clk 0:00:40]}  Qxc3 {[%clk 0:01:05]} 22. bxc3 {[%clk 0:00:39]}  Rxc3 {[%clk 0:00:57]} 23. Bc1 {[%clk 0:00:31]}  Rd1+ {[%clk 0:00:54]} 24. Rf1 {[%clk 0:00:27]}  Bf8 {[%clk 0:00:50]} 0-1


[Site "https://www.chess.com"]

[Event "Titled Tuesday Blitz May 23 Late 2023"]
[White "Fuentes Godoy, Lilia Ivonne"]
[Black "Remolar Gallen, Jose"]
[WhiteFideId "5104130"]
[BlackFideId "2215187"]
[WhiteElo "2096"]
[BlackElo "2223"]
[Result "0-1"]
[Round "04"]
[TimeControl "180+2"]
[Date "2023.05.23"]
[WhiteClock "0:00:01"]
[BlackClock "0:00:29"]

1. d4 {[%clk 0:03:00]}  Nf6 {[%clk 0:02:59]} 2. c4 {[%clk 0:03:00]}  g6 {[%clk 0:03:00]} 3. d5 {[%clk 0:03:00]}  Bg7 {[%clk 0:02:57]} 4. Nc3 {[%clk 0:03:01]}  O-O {[%clk 0:02:57]} 5. e4 {[%clk 0:02:56]}  d6 {[%clk 0:02:50]} 6. h3 {[%clk 0:02:54]}  Na6 {[%clk 0:02:41]} 7. Nf3 {[%clk 0:02:53]}  Nc5 {[%clk 0:02:41]} 8. Nd2 {[%clk 0:02:42]}  a5 {[%clk 0:02:38]} 9. Be2 {[%clk 0:02:38]}  e6 {[%clk 0:02:33]} 10. O-O {[%clk 0:02:38]}  exd5 {[%clk 0:02:31]} 11. exd5 {[%clk 0:02:38]}  Re8 {[%clk 0:02:28]} 12. Nf3 {[%clk 0:02:35]}  Nfe4 {[%clk 0:02:20]} 13. Nxe4 {[%clk 0:02:33]}  Nxe4 {[%clk 0:02:21]} 14. Bd3 {[%clk 0:02:32]}  Nc5 {[%clk 0:02:13]} 15. Bc2 {[%clk 0:02:30]}  b6 {[%clk 0:02:11]} 16. Bg5 {[%clk 0:02:30]}  Qd7 {[%clk 0:02:09]} 17. Re1 {[%clk 0:02:26]}  Ba6 {[%clk 0:02:08]} 18. Nd2 {[%clk 0:02:00]}  Bxb2 {[%clk 0:01:56]} 19. Rb1 {[%clk 0:02:00]}  Bc3 {[%clk 0:01:54]} 20. Rxe8+ {[%clk 0:01:56]}  Rxe8 {[%clk 0:01:53]} 21. Qf3 {[%clk 0:01:39]}  Bg7 {[%clk 0:01:33]} 22. h4 {[%clk 0:01:27]}  h6 {[%clk 0:01:30]} 23. Be3 {[%clk 0:01:25]}  h5 {[%clk 0:01:26]} 24. Re1 {[%clk 0:01:12]}  Qg4 {[%clk 0:01:23]} 25. Qxg4 {[%clk 0:00:25]}  hxg4 {[%clk 0:01:24]} 26. Kf1 {[%clk 0:00:25]}  Bc3 {[%clk 0:01:20]} 27. Bxc5 {[%clk 0:00:13]}  Rxe1+ {[%clk 0:01:19]} 28. Kxe1 {[%clk 0:00:14]}  bxc5 {[%clk 0:01:14]} 29. Bd3 {[%clk 0:00:14]}  f5 {[%clk 0:01:11]} 30. Ke2 {[%clk 0:00:14]}  Kf7 {[%clk 0:01:08]} 31. Nb1 {[%clk 0:00:11]}  Bf6 {[%clk 0:01:07]} 32. Ke3 {[%clk 0:00:05]}  Bxh4 {[%clk 0:01:05]} 33. g3 {[%clk 0:00:05]}  Bg5+ {[%clk 0:01:05]} 34. Ke2 {[%clk 0:00:06]}  Bf6 {[%clk 0:01:04]} 35. Nd2 {[%clk 0:00:05]}  Bc3 {[%clk 0:01:02]} 36. Nb3 {[%clk 0:00:05]}  a4 {[%clk 0:01:01]} 37. Nc1 {[%clk 0:00:05]}  Bb2 {[%clk 0:00:58]} 38. Kd1 {[%clk 0:00:05]}  Kf6 {[%clk 0:00:36]} 39. Ne2 {[%clk 0:00:04]}  g5 {[%clk 0:00:35]} 40. Kc2 {[%clk 0:00:04]}  Be5 {[%clk 0:00:33]} 41. Nc3 {[%clk 0:00:02]}  Bd4 {[%clk 0:00:31]} 42. Nxa4 {[%clk 0:00:01]}  Bxf2 {[%clk 0:00:29]} 0-1


[Site "https://www.chess.com"]